Cogmind - Beta 16 @@@ ROGUE MODE // 2026.01.09 @ 06:56:08 Player: GermanMO Result: Destroyed by as-94308 with Assembled Heavy Rifle Performance ------------- Evolutions (1) 500 Regions Visited (3) 600 Robots Destroyed (15) 75 Value Destroyed (234) 234 Prototype IDs (0) 0 Alien Tech Used (0) 0 Bonus (0) 0 TOTAL SCORE: 1409 Bonus ------- None Cogmind --------- Core Integrity 0/400 Matter 254/300 Energy 95/100 System Corruption 0% Temperature Cool (12) Movement Core (100) Ox1 Location -9/Mines Parts ------- > --- POWER (1) -------- (None) > --- PROPULSION (3) --- (None) > --- UTILITY (3) ------ Visual Processing Unit Signal Interpreter > --- WEAPON (2) ------- Particle Cannon > --- INVENTORY (5) ---- Improved Heat Sink Improved Terrain Scanner Particle Cannon Particle Cannon Peak State ------------ > --- POWER ------------ Light Ion Engine > --- PROPULSION ------- Flight Unit Flight Unit VTOL Module > --- UTILITY ---------- Visual Processing Unit Sensor Array Signal Interpreter > --- WEAPON ----------- Particle Cannon Particle Cannon > --- INVENTORY -------- Flight Unit Improved Heat Sink Improved Terrain Scanner Particle Cannon Mining Laser [Rating: 14] Favorites ----------- Power Light Ion Engine Engine Light Ion Engine Propulsion Flight Unit Treads Light Treads Wheel Compact Wheel Flight Unit Flight Unit Utility Visual Processing Unit Device Sensor Array Processor Visual Processing Unit Weapon Particle Cannon Energy Gun Medium Laser Energy Cannon Particle Cannon Launcher Grenade Launcher Special Weapon Mining Laser Build | -11 -10 -9 -9 ------- Run | Yrd Mat Mat Min Slots Evolved 2 | . . 2 . Power . | . . . . Propulsion 1 | . . 1 . Utility 1 | . . 1 . Weapon . | . . . . Parts Attached 23 | 9 6 6 2 Power 1 | 1 . . . Engine 1 | 1 . . . Core . | . . . . Reactor . | . . . . Propulsion 8 | 4 2 2 . Treads 1 | 1 . . . Leg . | . . . . Wheel 3 | 3 . . . Hover . | . . . . Flight 4 | . 2 2 . Utility 5 | 2 1 2 . Device 3 | 2 . 1 . Storage . | . . . . Processor 2 | . 1 1 . Hackware . | . . . . Protection . | . . . . Artifact . | . . . . Weapon 9 | 2 3 2 2 Energy Gun 3 | 2 1 . . Energy Cannon 3 | . 2 1 . Ballistic Gun . | . . . . Ballistic Cannon . | . . . . Launcher 1 | . . . 1 Special Weapon 2 | . . 1 1 Impact Weapon . | . . . . Slashing Weapon . | . . . . Piercing Weapon . | . . . . Special Melee Weapon . | . . . . Unidentified Prototypes . | . . . . Parts Lost 10 | . 1 3 6 Power 1 | . . 1 . Propulsion 5 | . 1 1 3 Utility 1 | . . . 1 Weapon 3 | . . 1 2 Highest Loss Streak 3 | . 1 3 3 To Critical Strikes . | . . . . Average Backups 3 | . 3 4 4 Power . | . . . . Propulsion . | . . . . Utility 1 | . 1 1 2 Weapon 1 | . 1 2 2 Tool/Special . | . . . . Unused Backups 3 | . . 1 2 Power . | . . . . Propulsion . | . . . . Utility 2 | . . 1 1 Weapon 1 | . . . 1 Tool/Special . | . . . . Average Slot Usage (%) 87 | . 95 92 66 Engine 8 | . 14 7 . Wheel 8 | . 24 . . Flight 19 | . 2 32 22 Device 13 | . 20 11 6 Processor 16 | . 7 20 22 Energy Gun 4 | . 13 . . Energy Cannon 11 | . 11 12 11 Special Weapon 4 | . . 7 4 Peak Build Rating 14 | 9 11 14 10 Average Rating 9 | 4 9 12 8 On Entrance 7 | . 9 10 9 Avg Prop Armor Cover (%) 10 | 10 . . . Naked Turns . | . . . . Heaviest Build 12 | 9 12 12 7 Greatest Support 32 | 32 32 12 8 Greatest Overweight (x) 2 | 1 2 1 . Average Overweight (x) . | . . . . Largest Inventory Capacity 5 | 5 5 5 5 Average Capacity 5 | 5 5 5 5 Most Carried 5 | 3 5 5 5 Average Carried 3 | . 3 4 4 Final Capacity 5 | 5 5 5 5 Final Carried 5 | 2 5 5 4 Class Distribution -------------------- 29% | Scavenger-Scout 24% | Scavenger-Mutant 24% | Mutant 21% | Scout Dominant Class ---------------- Mutant | -10/Materials Scavenger-Scout | -9/Materials Scout | -9/Mines Resources | -11 -10 -9 -9 ----------- Run | Yrd Mat Mat Min Matter Collected 414 | 210 24 60 120 Remotely . | . . . . Salvage Created 564 | 154 195 108 107 Parts 38 | 17 9 5 7 Haulers Intercepted . | . . . . Recyclers Shooed 1 | . 1 . . Parts Field Recycled . | . . . . Retrieved Matter . | . . . . Parts Self-Destructed . | . . . . Prevented . | . . . . Parts Restored . | . . . . Kills | -11 -10 -9 -9 ------- Run | Yrd Mat Mat Min Combat Hostiles Destroyed 6 | . 2 2 2 Cannons 6 | . 2 2 2 Classes Destroyed 6 | 2 2 1 1 Tunneler 6 | 4 . . 2 Recycler 3 | 1 2 . . Watcher 1 | . 1 . . Swarmer 2 | . 2 . . Grunt 3 | . . 2 1 Assembled 1 | . . . 1 Best Kill Streak 5 | 3 5 2 2 Combat Bots Only 2 | . 2 2 1 Max Kills in Single Turn 1 | 1 1 1 1 Gunslinging . | . . . . Exploded . | . . . . Melee . | . . . . Uniques/NPCs Destroyed . | . . . . Combat | -11 -10 -9 -9 -------- Run | Yrd Mat Mat Min Hostile Shots Fired 95 | . 15 27 53 Missed 38 | . 4 12 22 Hits 57 | . 11 15 31 Projectile 57 | . 11 15 31 AOE 5 | . . . 5 Damage Taken 942 | . 172 167 603 Core 420 | . 18 64 338 Absorbed by Shields . | . . . . Core Remaining (%) 96 | 100 92 . . Volleys Fired 51 | 9 9 20 13 Largest 2 | 2 2 2 1 Hottest 136 | 100 136 136 68 Shots Fired 75 | 18 18 26 13 Gun 18 | 18 . . . Cannon 43 | . 18 13 12 Launcher 1 | . . . 1 Special 13 | . . 13 . Kinetic . | . . . . Thermal 74 | 18 18 26 12 Explosive 1 | . . . 1 Electromagnetic . | . . . . Robot Hit Streak 6 | 6 3 5 6 Robot Miss Streak 3 | 2 3 2 3 Penetration Max . | . . . . Secondary Targets . | . . . . Shots Hit Robots 37 | 12 9 8 8 Core Hits 21 | 6 5 3 7 Critical Kills . | . . . . Critical Parts Destroyed . | . . . . Critical Strikes 1 | 1 . . . Burn 1 | 1 . . . Melee Attacks . | . . . . Impact . | . . . . Slashing . | . . . . Piercing . | . . . . Sneak Attacks . | . . . . Combat Hostiles . | . . . . Follow-up Attacks . | . . . . Damage Inflicted 741 | 165 226 171 179 Guns 165 | 165 . . . Cannons 513 | . 226 123 164 Explosions 15 | . . . 15 Melee . | . . . . Ramming . | . . . . Kinetic . | . . . . Thermal 726 | 165 226 171 164 Explosive 15 | . . . 15 Electromagnetic . | . . . . Impact . | . . . . Slashing . | . . . . Piercing . | . . . . Highest Corruption 1 | . 1 . . Average Corruption 1 | . 1 . . Corruption Purged . | . . . . Corruption Blocked . | . . . . Effects 1 | . 1 . . Energy Discharges 1 | . 1 . . Overload Shots . | . . . . Overflow Damage 5 | . 1 4 . Projectiles 5 | . 1 4 . Explosions . | . . . . Melee . | . . . . Knockbacks . | . . . . Impact . | . . . . Kinetic . | . . . . Secondary . | . . . . Self-Inflicted Damage . | . . . . Shots . | . . . . Rammed . | . . . . Targets Rammed . | . . . . Kicked . | . . . . Crushed . | . . . . Highest Temperature 480 | 234 480 345 84 Average Temperature 147 | 97 267 135 34 Received Heat Transfer 106 | . . 66 40 Effects 10 | . 5 5 . Shutdowns 4 | . 3 1 . Energy Bleed 1 | . . 1 . Interference 5 | . 2 3 . Siege Activations . | . . . . Martial Activations . | . . . . Shielding Activations . | . . . . Robots Disrupted . | . . . . Combat Hostiles . | . . . . Robots Corrupted . | . . . . Combat Hostiles . | . . . . Parts Fried . | . . . . Impact Corruptions . | . . . . Robots Melted . | . . . . Combat Hostiles . | . . . . Parts Melted 2 | 2 . . . Heat Transferred 1580 | 555 407 322 296 Parts Sabotaged . | . . . . Parts Stolen . | . . . . Parts Stripped . | . . . . Power Chain Reactions . | . . . . Alert | -11 -10 -9 -9 ------- Run | Yrd Mat Mat Min Maximum Alert Level . | . . . . Low Security (%) 100 | 100 100 100 100 Level 1 . | . . . . Level 2 . | . . . . Level 3 . | . . . . Level 4 . | . . . . Level 5 . | . . . . High Security . | . . . . Max Security . | . . . . Peak Influence 155 | 15 62 155 91 Initial 56 | . 3 21 56 Average 25 | 4 15 28 53 Influence Increases 404 | 25 82 239 58 Destroy 0b10 Robot/C 100 | . 40 40 20 Destroy 0b10 Robot/NC 50 | 25 15 . 10 Destroy Leader 32 | . 12 10 10 Disable Machine 15 | . . 15 . Destroy Structure 12 | . . 9 3 Partial Spotted 15 | . . . 15 Lose Combat Pursuer 180 | . 15 165 . Influence Decreases 404 | 20 35 146 203 Entered New Map 122 | . 2 31 89 Time Decay 203 | 20 33 90 60 Lost Part 79 | . . 25 54 Squads Dispatched 1 | . . 1 . Investigation . | . . . . Extermination . | . . . . Reinforcement 1 | . . 1 . Assault . | . . . . Garrison . | . . . . Intercept . | . . . . Searches Triggered . | . . . . Construction Impeded . | . . . . Haulers Reinforced . | . . . . Active Scanning Responses . | . . . . Cargo Convoy Interrupts . | . . . . Stealth | -11 -10 -9 -9 --------- Run | Yrd Mat Mat Min Distress Signals 1 | . 1 . . Communications Jammed . | . . . . Distress Signals . | . . . . Times Spotted 62 | . 4 24 34 Peak Tracking Total 20 | . 4 17 20 Tactical Retreats 4 | . 1 1 2 Traps | -11 -10 -9 -9 ------- Run | Yrd Mat Mat Min Traps Triggered 3 | . 2 1 . Indirectly . | . . . . Trap Hack Attempts . | . . . . Triggered . | . . . . Disarmed . | . . . . Reprogrammed . | . . . . Reused . | . . . . Traps Extracted . | . . . . Installed . | . . . . Triggered . | . . . . Machines | -11 -10 -9 -9 ---------- Run | Yrd Mat Mat Min Machines Disabled 1 | . . 1 . Max in Single Turn 1 | . . 1 . Machines Repaired . | . . . . Machines Dismantled . | . . . . Machines Sabotaged . | . . . . Overloaded Fab Kills . | . . . . Hacking | -11 -10 -9 -9 --------- Run | Yrd Mat Mat Min Machines Accessed . | . . . . Terminals . | . . . . Fabricators . | . . . . Repair Stations . | . . . . Recycling Units . | . . . . Scanalyzers . | . . . . Garrison Access . | . . . . Total Hacks . | . . . . Successful . | . . . . Failed . | . . . . Catastrophic . | . . . . Database Lockouts . | . . . . Manual . | . . . . Terminals . | . . . . Fabricators . | . . . . Repair Stations . | . . . . Recycling Units . | . . . . Scanalyzers . | . . . . Garrison Access . | . . . . Terminal Hacks . | . . . . Fabricator Hacks . | . . . . Repair Station Hacks . | . . . . Recycling Unit Hacks . | . . . . Scanalyzer . | . . . . Garrison Access Hacks . | . . . . Unauthorized Hacks . | . . . . Terminals . | . . . . Fabricators . | . . . . Repair Stations . | . . . . Recycling Units . | . . . . Scanalyzers . | . . . . Garrison Access . | . . . . Data Cores Recovered . | . . . . Used . | . . . . Hacking Detections . | . . . . Full Trace Events . | . . . . Feedback Events . | . . . . Feedback Blocked . | . . . . Robot Schematics Acquired . | . . . . Robots Built . | . . . . Authchips . | . . . . Time . | . . . . Total Robot Build Rating . | . . . . Part Schematics Acquired . | . . . . Parts Built . | . . . . Authchips . | . . . . Time . | . . . . Total Part Build Rating . | . . . . Part Studies Acquired . | . . . . Parts Repaired . | . . . . Time . | . . . . Parts Recycled . | . . . . Recycled Matter . | . . . . Retrieved Matter . | . . . . Retrieved Components . | . . . . Parts Scanalyzed . | . . . . Part Schematics Acquired . | . . . . Parts Damaged . | . . . . Bothacking | -11 -10 -9 -9 ------------ Run | Yrd Mat Mat Min Used RIF Installer . | . . . . Robots Hacked . | . . . . Non-combat . | . . . . Combat . | . . . . Robot Hacks Applied . | . . . . Relay Couplers Released . | . . . . Fabnet Peak Effective % . | . . . . Robots Rewired . | . . . . Allies Hacked . | . . . . Hacks Repelled . | . . . . Allies | -11 -10 -9 -9 -------- Run | Yrd Mat Mat Min Total Allies . | . . . . Largest Group . | . . . . Highest-Rated Group . | . . . . Highest-Rated Ally . | . . . . Total Orders . | . . . . Ally Attacks . | . . . . Total Damage . | . . . . Kills . | . . . . Allies Corrupted . | . . . . Allies Melted . | . . . . Intel | -11 -10 -9 -9 ------- Run | Yrd Mat Mat Min Active Infowar (turns) 555 | 56 172 205 122 Optics 423 | . 96 205 122 Sensors 102 | . . 102 . Terrain 101 | 7 83 11 . Seismic 204 | 56 148 . . Robot Analysis Total . | . . . . Derelict Logs Recovered . | . . . . Drone Launches . | . . . . Drone Recoveries . | . . . . Exploration | -11 -10 -9 -9 ------------- Run | Yrd Mat Mat Min Turns Passed 597 | 98 172 205 122 Spaces Moved 641 | 57 132 277 175 Core 16 | 16 . . . Treads . | . . . . Legs . | . . . . Wheels 156 | 41 115 . . Hover . | . . . . Flight 469 | . 17 277 175 Fastest Speed 32 | 50 37 32 37 Average Speed 50 | 88 89 33 37 Slowest Speed 205 | 100 205 114 37 Overloaded Moves . | . . . . Propulsion Burnouts . | . . . . Robots Hopped 22 | . . 22 . Potential Cave-ins . | . . . . Cave-ins Triggered . | . . . . Exploration Rate (%) 27 | 3 26 39 43 Regions Visited 3 Branch Regions 1 Pre-discovered Areas . | . . . . Known Exits Taken . | . . . . Unknown Exits Taken 3 | 1 1 1 . Scrap Searched . | . . . . Spaces Dug 9 | . . 9 . Terrain Destroyed 13 | . . 9 4 Melee . | . . . . Projectile 9 | . . 9 . AOE 4 | . . . 4 Terrain Rammed . | . . . . Walls Destroyed . | . . . . Machines Disabled . | . . . . Actions | -11 -10 -9 -9 --------- Run | Yrd Mat Mat Min Total 785 | 84 169 314 218 Wait 62 | 5 4 26 27 Move 603 | 56 131 241 175 Hop 13 | . . 13 . Pick Up 7 | 2 4 1 . Fast Attach 22 | 8 7 5 2 Attach 6 | 1 2 2 1 Detach 8 | 2 4 2 . Swap 2 | . . 2 . Drop 11 | 1 8 2 . Fire 51 | 9 9 20 13 Melee . | . . . . Ram . | . . . . Kick . | . . . . Crush . | . . . . Escape Stasis . | . . . . Rewire . | . . . . Trap . | . . . . Miscellaneous . | . . . . Route ------- -11/Scrapyard -10/Materials -9/Materials -9/Mines History --------- Turn | Location | Event 4 | -11/Scrapyard | Discovered new exit (range 15) 99 | -11/Scrapyard | Entered Materials 145 | -10/Materials | Discovered new exit (range 11) 271 | -10/Materials | Entered another Materials area 271 | -9/Materials | Evolved 2 slots: Propulsion x1, Utility x1 468 | -9/Materials | Discovered new exit (range 9) 476 | -9/Materials | Entered Mines 492 | -9/Mines | Lost 3 parts (1p1n1w) 498 | -9/Mines | Assembled infested the area 503 | -9/Mines | Assisted by a Guerilla fighting off Assembled 576 | -9/Mines | Lost 3 parts (1n1u1w) 588 | -9/Mines | YI-UF0 nonchalantly dropped a Grenade Launcher on the ground 595 | -9/Mines | Core integrity fell below 50% 597 | -9/Mines | Core integrity fell below 20% 598 | -9/Mines | Destroyed by as-94308 with Assembled Heavy Rifle Last Messages --------------- 00566_ as-62045 destroyed. 00566_ YI-UF0: "BLAM!" 00566_ as-60621 destroyed. 00567_ as-77588 destroyed. 00569_ The unstable cave ceiling collapses. 00569_ T-07 Excavator is excavating. 00577_ YI-UF0: "WHAAM!" 00578_ T-07 Excavator is excavating. 00579_ YI-UF0: "BWOOM!" 00579_ YI-UF0: "BOOM!" 00582_ T-07 Excavator is excavating. 00583_ YI-UF0 mumbles something. 00588_ YI-UF0 nonchalantly drops a Grenade Launcher on the ground. 00588_ T-07 Excavator is excavating. 00589_ Acquired Grenade Launcher. 00592_ YI-UF0: "Whaaaaaaaa!" 00592_ Acquired 1 matter. 00592_ Flight Unit destroyed. 00596_ The unstable cave ceiling collapses. 00596_ Grenade Launcher destroyed. Map ----- +----------------------------------------------------+ | ???????????????????????????####??????????????????? | | ??????????????????????????## ##????????????????## | | ??????????????????????????# #?????????????#### | | ?????????????????????????## #????########## | | ?????????????????????????# ###### | | ????????????????????????## ## | | ????????????????????????# | | ????????????????#???????# | | ???????????????# ??????## | | ??????????????? ???????# a | | ??????###?????? ???????# ## | | ?????? #???## ???????#aaa## | | ??????? #### ??????### ### #### | | ??????? ??????# a ### ##??## | | ??????? ??????## ### #????## # | | ???????? ???#### #?## #????# # | | ????????? #???# ##?# #?# | | ?????????? ##??# ### | | ??????????# ##?# ### " ## | | ???????????# #?## #?##### # | | ???????????# #??# ???????# # | | ??????#????# #??## ####?????? ????#? | | ??????# ### ##??# #??????????????? | | ???????# #### #??????????????? | | ???????# ## #??????????????? | | ???????# # ## @ #?????????????? | | ???????###### g #?????????????? | | ????????????# # # ####?????????????? | | ????????????## # #????????????????? | | ?????????????### # ## #????????????????? | | ???????????????## % ###???#????????????????? | | ????????????????# # ##??????????????????????? | | ????????????????# ##???????????????????????? | | ????????????????## #????????????????????????? | | ?????????????????#### #????????????????????????? | | ????????????????????### #????????????????????????? | | ??????????????????????# #????????????????????????? | | ??????????????????????# #????????????????????????? | | ??????????????????????# ????????????????????????? | | ??????????????????????###????????????????????????? | | ?????????????????????????????????????????????????? | | ?????????????????????????????????????????????????? | | ?????????????????????????????????????????????????? | | ?????????????????????????????????????????????????? | | ?????????????????????????????????????????????????? | | ?????????????????????????????????????????????????? | | ?????????????????????????????????????????????????? | | ?????????????????????????????????????????????????? | | ?????????????????????????????????????????????????? | | ?????????????????????????????????????????????????? | +----------------------------------------------------+ Best States ------------- Heat Dissipation 28 Energy Generation 10 Energy Capacity 125 Matter Stores 258 Matter Capacity 300 Sight Range 18 Robot Scan Range 14 Terrain Scan Range 16 Terrain Scan Density 10 Evasion (%) 63 Item Schematics ----------------- None Robot Schematics ------------------ None Fabricated ------------ Nothing Repaired ---------- Nothing Studied --------- None Alien Tech Used ----------------- None Achievements -------------- None Challenges ------------ None Game ------ Seed FortressHardenedPropulsion Manual? 0 Play Time 00:21:45 Cumulative 29.9 hours Start 2026.01.09 @ 06:30:03 End 2026.01.09 @ 06:56:08 Sessions 1 Manual Loads 0 Difficulty Rogue Special Mode None Game No. 37 Rogue 18 Adventurer 0 Explorer 19 Win Type - Total 1 Types 1/0/0/0/0/0/0/0/0/0 Lore% 24 Gallery% 27 Achievement% 22 Wizard Run 0 Options --------- Layout 0 ASCII 0 Keyboard 1 Movement Arrows Keybinds 0 Fullscreen 2 Font 12/Smallcaps Map View 76x50 Zoom Use 0% Tactical HUD 1 Map Filters NONE Filters NONE Steam X RUN: 0a8e23d3-93ed-4bfc-a3fe-6b7bb4f66237